Cogmind - Beta 16 @@@ ROGUE MODE // 2025.11.09 @ 16:09:58 Player: RHAHI Result: Destroyed by 1Q-I7S(R) with Subdweller Laser Performance ------------- Evolutions (0) 0 Regions Visited (3) 600 Robots Destroyed (20) 100 Value Destroyed (403) 403 Prototype IDs (4) 80 Alien Tech Used (0) 0 Bonus (0) 0 TOTAL SCORE: 1183 Bonus ------- None Cogmind --------- Core Integrity 0/250 Matter 88/300 Energy 185/200 System Corruption 0% Temperature Cool (6) Movement Treading (160) Location -10/Subcaves Parts ------- > --- POWER (1) -------- Subdweller Power Source > --- PROPULSION (2) --- Light Treads Subdweller Monowheel > --- UTILITY (2) ------ Heat Sink Sensor Array > --- WEAPON (2) ------- Subdweller Shrapnel Launcher > --- INVENTORY (5) ---- Huge Storage Unit Signal Interpreter Targeting Computer Weapon Shielding Peak State ------------ > --- POWER ------------ Light Ion Engine > --- PROPULSION ------- Light Treads Light Treads > --- UTILITY ---------- Huge Storage Unit Hacking Suite > --- WEAPON ----------- Light Assault Rifle Light Assault Rifle > --- INVENTORY -------- Light Treads Light Treads Heat Sink Sensor Array Seismic Detector Targeting Computer Weapon Shielding Light Armor Plating Grenade Launcher Mining Laser [Rating: 10] Favorites ----------- Power Light Ion Engine Engine Light Ion Engine Propulsion Light Treads Treads Light Treads Wheel Subdweller Monowheel Utility Hacking Suite Device Seismic Detector Storage Huge Storage Unit Hackware Hacking Suite Protection Light Armor Plating Weapon Light Assault Rifle Energy Gun EM Pulse Gun Ballistic Gun Light Assault Rifle Launcher Subdweller Shrapnel Launcher Special Weapon Mining Laser Build | -11 -10 -10 -10 ------- Run | Yrd Mat Min Sub Slots Evolved . | . . . . Power . | . . . . Propulsion . | . . . . Utility . | . . . . Weapon . | . . . . Parts Attached 26 | 6 6 4 10 Power 5 | . 2 1 2 Engine 5 | . 2 1 2 Core . | . . . . Reactor . | . . . . Propulsion 5 | 2 . . 3 Treads 4 | 2 . . 2 Leg . | . . . . Wheel 1 | . . . 1 Hover . | . . . . Flight . | . . . . Utility 8 | 2 2 . 4 Device 4 | 2 . . 2 Storage 1 | . 1 . . Processor . | . . . . Hackware 1 | . 1 . . Protection 2 | . . . 2 Artifact . | . . . . Weapon 8 | 2 2 3 1 Energy Gun 1 | . 1 . . Energy Cannon . | . . . . Ballistic Gun 4 | 2 . 2 . Ballistic Cannon . | . . . . Launcher 2 | . . 1 1 Special Weapon 1 | . 1 . . Impact Weapon . | . . . . Slashing Weapon . | . . . . Piercing Weapon . | . . . . Special Melee Weapon . | . . . . Unidentified Prototypes . | . . . . Parts Lost 11 | . 1 . 10 Power 1 | . . . 1 Propulsion 3 | . . . 3 Utility 2 | . . . 2 Weapon 5 | . 1 . 4 Highest Loss Streak 9 | . 1 . 9 To Critical Strikes . | . . . . Average Backups 9 | 2 4 12 11 Power . | . . . . Propulsion 1 | . . 1 1 Utility 6 | . . 8 8 Weapon 2 | 1 2 2 1 Tool/Special . | . . . . Unused Backups 9 | . 3 . 6 Power . | . . . . Propulsion 1 | . 1 . . Utility 6 | . . . 6 Weapon 2 | . 2 . . Tool/Special . | . . . . Average Slot Usage (%) 94 | . 85 98 90 Engine 10 | . 3 12 13 Treads 27 | . 28 28 22 Device 6 | . 15 2 7 Storage 8 | . . 11 9 Hackware 11 | . 8 14 7 Ballistic Gun 21 | . 16 25 9 Special Weapon 4 | . 8 2 8 Peak Build Rating 10 | 8 9 10 10 Average Rating 8 | 5 7 9 8 On Entrance 6 | . 8 9 10 Avg Prop Armor Cover (%) 24 | 27 25 26 4 Naked Turns . | . . . . Heaviest Build 85 | 5 85 85 85 Greatest Support 40 | 40 40 40 40 Greatest Overweight (x) 2 | 1 2 2 2 Average Overweight (x) . | . . 1 1 Largest Inventory Capacity 25 | 5 25 25 25 Average Capacity 16 | 5 6 21 18 Most Carried 15 | 4 5 15 15 Average Carried 9 | 2 4 12 11 Final Capacity 25 | 5 25 25 5 Final Carried 15 | 4 5 15 4 Class Distribution -------------------- 80% | Mutant 19% | Scavenger-Mutant Dominant Class ---------------- Mutant | -10/Materials Mutant | -10/Mines Scavenger-Mutant | -10/Subcaves Resources | -11 -10 -10 -10 ----------- Run | Yrd Mat Min Sub Matter Collected 627 | 304 131 168 24 Remotely . | . . . . Salvage Created 422 | 115 220 35 52 Parts 40 | 8 16 8 8 Haulers Intercepted . | . . . . Recyclers Shooed . | . . . . Parts Field Recycled . | . . . . Retrieved Matter . | . . . . Parts Self-Destructed 2 | . . . 2 Prevented . | . . . . Parts Restored . | . . . . Kills | -11 -10 -10 -10 ------- Run | Yrd Mat Min Sub Combat Hostiles Destroyed 15 | . 5 6 4 Guns 6 | . 4 1 1 AOE 9 | . 1 5 3 Classes Destroyed 7 | 2 3 . 2 Tunneler 2 | 2 . . . Recycler 2 | 1 1 . . Operator 1 | . 1 . . Swarmer 9 | . 3 6 . Grunt 2 | . 2 . . Artisan 1 | . . . 1 Subdweller 4 | . . . 4 Best Kill Streak 3 | 2 3 3 2 Combat Bots Only 3 | . 3 3 2 Max Kills in Single Turn 3 | 1 1 3 1 Gunslinging . | . . . . Exploded 3 | . 1 3 1 Melee . | . . . . Uniques/NPCs Destroyed . | . . . . Combat | -11 -10 -10 -10 -------- Run | Yrd Mat Min Sub Hostile Shots Fired 89 | . 29 16 44 Missed 23 | . 5 9 9 Hits 66 | . 24 7 35 Projectile 66 | . 24 7 35 AOE 4 | . . . 4 Critical Strikes 2 | . 1 . 1 Damage Taken 1451 | . 285 102 1064 Core 252 | . 42 34 176 Absorbed by Shields . | . . . . Core Remaining (%) 100 | 100 . . . Volleys Fired 86 | 11 40 14 21 Largest 2 | 2 2 2 2 Hottest 120 | 40 120 100 100 Shots Fired 119 | 22 53 18 26 Gun 80 | 22 30 14 14 Cannon . | . . . . Launcher 11 | . . 3 8 Special 28 | . 23 1 4 Kinetic 73 | 22 18 14 19 Thermal 28 | . 23 1 4 Explosive 6 | . . 3 3 Electromagnetic 12 | . 12 . . Robot Hit Streak 9 | 5 7 8 9 Robot Miss Streak 9 | 3 2 9 2 Penetration Max . | . . . . Secondary Targets . | . . . . Shots Hit Robots 53 | 12 19 5 17 Core Hits 31 | 4 11 8 8 Critical Kills . | . . . . Critical Parts Destroyed . | . . . . Critical Strikes . | . . . . Melee Attacks . | . . . . Impact . | . . . . Slashing . | . . . . Piercing . | . . . . Sneak Attacks . | . . . . Combat Hostiles . | . . . . Follow-up Attacks . | . . . . Damage Inflicted 1473 | 129 341 266 737 Guns 484 | 129 225 30 100 Cannons . | . . . . Explosions 989 | . 116 236 637 Melee . | . . . . Ramming . | . . . . Kinetic 605 | 129 75 30 371 Thermal 116 | . 116 . . Explosive 602 | . . 236 366 Electromagnetic 150 | . 150 . . Impact . | . . . . Slashing . | . . . . Piercing . | . . . . Highest Corruption . | . . . . Average Corruption . | . . . . Corruption Purged . | . . . . Corruption Blocked . | . . . . Overload Shots . | . . . . Overflow Damage 41 | . 7 31 3 Projectiles . | . . . . Explosions 41 | . 7 31 3 Melee . | . . . . Knockbacks . | . . . . Impact . | . . . . Kinetic . | . . . . Secondary . | . . . . Self-Inflicted Damage 114 | . 25 27 62 Shots 7 | . 1 1 5 Rammed . | . . . . Targets Rammed . | . . . . Kicked . | . . . . Crushed . | . . . . Highest Temperature 257 | . 93 20 257 Average Temperature 45 | . 33 9 123 Received Heat Transfer 680 | . 126 9 545 Siege Activations . | . . . . Martial Activations . | . . . . Shielding Activations . | . . . . Robots Disrupted . | . . . . Combat Hostiles . | . . . . Robots Corrupted . | . . . . Combat Hostiles . | . . . . Parts Fried . | . . . . Impact Corruptions . | . . . . Robots Melted . | . . . . Combat Hostiles . | . . . . Parts Melted . | . . . . Heat Transferred 150 | . 150 . . Parts Sabotaged . | . . . . Parts Stolen . | . . . . Parts Stripped . | . . . . Power Chain Reactions 1 | . 1 . . Alert | -11 -10 -10 -10 ------- Run | Yrd Mat Min Sub Maximum Alert Level . | . . . . Low Security (%) 100 | 100 100 100 . Level 1 . | . . . . Level 2 . | . . . . Level 3 . | . . . . Level 4 . | . . . . Level 5 . | . . . . High Security . | . . . . Max Security . | . . . . Peak Influence 152 | 5 152 133 . Initial 42 | . . 42 . Average 32 | 1 77 13 . Influence Increases 566 | 15 397 154 . Destroy 0b10 Robot/C 220 | . 100 120 . Destroy 0b10 Robot/NC 25 | 15 10 . . Destroy Leader 40 | . 20 20 . Successful Hack 2 | . 2 . . Select Force Hacks 30 | . 30 . . Disable Machine 45 | . 45 . . Destroy Structure 39 | . 25 14 . Partial Spotted 30 | . 30 . . Lose Combat Pursuer 135 | . 135 . . Influence Decreases 566 | 15 289 262 . Entered New Map 66 | . . 66 . Time Decay 490 | 15 279 196 . Lost Part 10 | . 10 . . Squads Dispatched 4 | . 4 . . Investigation 3 | . 3 . . Extermination . | . . . . Reinforcement 1 | . 1 . . Assault . | . . . . Garrison . | . . . . Intercept . | . . . . Searches Triggered . | . . . . Construction Impeded . | . . . . Haulers Reinforced . | . . . . Active Scanning Responses . | . . . . Cargo Convoy Interrupts . | . . . . Stealth | -11 -10 -10 -10 --------- Run | Yrd Mat Min Sub Distress Signals 1 | . 1 . . Communications Jammed . | . . . . Distress Signals . | . . . . Times Spotted 33 | . 20 7 6 Peak Tracking Total 5 | . 5 3 4 Tactical Retreats 4 | . 4 . . Traps | -11 -10 -10 -10 ------- Run | Yrd Mat Min Sub Traps Triggered 2 | . 2 . . Indirectly . | . . . . Trap Hack Attempts . | . . . . Triggered . | . . . . Disarmed . | . . . . Reprogrammed . | . . . . Reused . | . . . . Traps Extracted . | . . . . Installed . | . . . . Triggered . | . . . . Machines | -11 -10 -10 -10 ---------- Run | Yrd Mat Min Sub Machines Disabled 3 | . 3 . . Max in Single Turn 2 | . 2 . . Machines Repaired . | . . . . Machines Dismantled . | . . . . Machines Sabotaged . | . . . . Overloaded Fab Kills . | . . . . Hacking | -11 -10 -10 -10 --------- Run | Yrd Mat Min Sub Machines Accessed 8 | . 8 . . Terminals 6 | . 6 . . Fabricators . | . . . . Repair Stations . | . . . . Recycling Units 2 | . 2 . . Scanalyzers . | . . . . Garrison Access . | . . . . Total Hacks 16 | . 16 . . Successful 11 | . 11 . . Failed 5 | . 5 . . Catastrophic 1 | . 1 . . Database Lockouts . | . . . . Manual 11 | . 11 . . Terminals 14 | . 14 . . Fabricators . | . . . . Repair Stations . | . . . . Recycling Units 2 | . 2 . . Scanalyzers . | . . . . Garrison Access . | . . . . Terminal Hacks 3 | . 3 . . Prototype ID Bank 2 | . 2 . . Zone Layout 1 | . 1 . . Fabricator Hacks . | . . . . Repair Station Hacks . | . . . . Recycling Unit Hacks . | . . . . Scanalyzer . | . . . . Garrison Access Hacks . | . . . . Unauthorized Hacks 8 | . 8 . . Terminals 6 | . 6 . . Botnet 1 | . 1 . . Skim 5 | . 5 . . Fabricators . | . . . . Repair Stations . | . . . . Recycling Units 2 | . 2 . . Recyclers 1 | . 1 . . Tunnel 1 | . 1 . . Scanalyzers . | . . . . Garrison Access . | . . . . Data Cores Recovered 1 | . 1 . . Used . | . . . . Hacking Detections 7 | . 7 . . Full Trace Events . | . . . . Feedback Events . | . . . . Feedback Blocked . | . . . . Robot Schematics Acquired . | . . . . Robots Built . | . . . . Authchips . | . . . . Time . | . . . . Total Robot Build Rating . | . . . . Part Schematics Acquired . | . . . . Parts Built . | . . . . Authchips . | . . . . Time . | . . . . Total Part Build Rating . | . . . . Part Studies Acquired . | . . . . Parts Repaired . | . . . . Time . | . . . . Parts Recycled . | . . . . Recycled Matter . | . . . . Retrieved Matter . | . . . . Retrieved Components . | . . . . Parts Scanalyzed . | . . . . Part Schematics Acquired . | . . . . Parts Damaged . | . . . . Bothacking | -11 -10 -10 -10 ------------ Run | Yrd Mat Min Sub Used RIF Installer . | . . . . Robots Hacked . | . . . . Non-combat . | . . . . Combat . | . . . . Robot Hacks Applied . | . . . . Relay Couplers Released . | . . . . Fabnet Peak Effective % . | . . . . Robots Rewired . | . . . . Allies Hacked . | . . . . Hacks Repelled . | . . . . Allies | -11 -10 -10 -10 -------- Run | Yrd Mat Min Sub Total Allies 3 | . . 3 . Largest Group 3 | . . 3 3 Highest-Rated Group 40 | . . 40 40 Highest-Rated Ally 16 | . . 16 16 Total Orders 2 | . . 2 . STAY 1 | . . 1 . FOLLOW 1 | . . 1 . Ally Attacks . | . . . . Total Damage . | . . . . Kills . | . . . . Allies Corrupted . | . . . . Allies Melted . | . . . . Intel | -11 -10 -10 -10 ------- Run | Yrd Mat Min Sub Active Infowar (turns) 1117 | 48 715 280 74 Sensors 74 | . . . 74 Terrain 182 | 48 134 . . Seismic 1006 | 11 715 280 . Robot Analysis Total . | . . . . Derelict Logs Recovered 4 | . . 3 1 Drone Launches . | . . . . Drone Recoveries . | . . . . Exploration | -11 -10 -10 -10 ------------- Run | Yrd Mat Min Sub Turns Passed 2924 | 98 806 1732 288 Spaces Moved 1489 | 62 594 742 91 Core 832 | 47 562 223 . Treads 657 | 15 32 519 91 Legs . | . . . . Wheels . | . . . . Hover . | . . . . Flight . | . . . . Fastest Speed 50 | 50 50 50 160 Average Speed 162 | 88 79 224 240 Slowest Speed 320 | 160 320 320 320 Overloaded Moves . | . . . . Propulsion Burnouts . | . . . . Robots Hopped . | . . . . Potential Cave-ins . | . . . . Cave-ins Triggered . | . . . . Exploration Rate (%) 49 | 3 93 98 5 Regions Visited 3 Branch Regions 2 Pre-discovered Areas 5 | . 3 2 . Known Exits Taken . | . . . . Unknown Exits Taken 3 | 1 1 1 . Scrap Searched 1 | . . 1 . Spaces Dug 23 | . 22 1 . Terrain Destroyed 85 | . 27 14 44 Melee . | . . . . Projectile 23 | . 22 1 . AOE 62 | . 5 13 44 Terrain Rammed . | . . . . Walls Destroyed . | . . . . Machines Disabled . | . . . . Actions | -11 -10 -10 -10 --------- Run | Yrd Mat Min Sub Total 1836 | 82 834 792 128 Wait 178 | . 169 9 . Move 1486 | 61 593 741 91 Hop . | . . . . Pick Up 24 | 4 7 12 1 Fast Attach 11 | 6 1 1 3 Attach 17 | . 7 3 7 Detach 8 | . 5 3 . Swap 15 | . 7 5 3 Drop 11 | . 5 4 2 Fire 86 | 11 40 14 21 Melee . | . . . . Ram . | . . . . Kick . | . . . . Crush . | . . . . Escape Stasis . | . . . . Rewire . | . . . . Trap . | . . . . Miscellaneous . | . . . . Route ------- -11/Scrapyard -10/Materials (discovered 4 exits: *Mat x2 / [*Min x2]) -10/Mines (discovered 3 exits: *Mat x2 / [*Sub]) -10/Subcaves History --------- Turn | Location | Event 7 | -11/Scrapyard | Discovered new exit (range 15) 99 | -11/Scrapyard | Entered Materials 212 | -10/Materials | Discovered new exit (range 5) 278 | -10/Materials | Discovered new exit (range 4) 317 | -10/Materials | Build established: Mutant 350 | -10/Materials | Discovered new exit (range 8) 350 | -10/Materials | Discovered new exit (range 10) 560 | -10/Materials | Learned location of 1 exit from Storage 603 | -10/Materials | Learned location of Recycling (-9) 637 | -10/Materials | Learned Storage stockpile data 659 | -10/Materials | Learned Storage stockpile data 670 | -10/Materials | Learned location of Storage (-9) 672 | -10/Materials | Learned Storage emergency access door positions 673 | -10/Materials | Identified exit to Materials 689 | -10/Materials | Learned Storage stockpile data 713 | -10/Materials | Learned Storage stockpile data 905 | -10/Materials | Entered Mines 1047 | -10/Mines | Deemed a non-threat by the Exiles lab entrance 1147 | -10/Mines | Discovered exit to Materials (range 9) 1179 | -10/Mines | Learned location of 1 exit from Materials 1182 | -10/Mines | Joined a pair of Derelicts in attacking an 0b10 outpost 1215 | -10/Mines | Learned Materials garrison access intel 1524 | -10/Mines | Discovered exit to Materials (range 12) 1553 | -10/Mines | Assisted by bots powering up and referring to "LRC-V3" 2586 | -10/Mines | Discovered new exit (range 14) 2637 | -10/Mines | Entered Subcaves 2637 | -10/Subcaves | Accompanied by 3 allies 2647 | -10/Subcaves | Learned Materials garrison access intel 2797 | -10/Subcaves | A Subdweller sparked back to life 2797 | -10/Subcaves | A Subdweller sparked back to life 2797 | -10/Subcaves | A Subdweller sparked back to life 2800 | -10/Subcaves | Ambushed by Subdweller buried in earth 2805 | -10/Subcaves | Ambushed by Subdweller buried in earth 2814 | -10/Subcaves | Core integrity fell below 50% 2828 | -10/Subcaves | Lost 3 allies 2842 | -10/Subcaves | Core integrity fell below 20% 2860 | -10/Subcaves | Lost 9 parts (1p3n2u3w) 2893 | -10/Subcaves | Build established: Scavenger-Mutant 2925 | -10/Subcaves | Destroyed by 1Q-I7S(R) with Subdweller Laser Last Messages --------------- Source. 02852_ Acquired Huge Storage Unit. 02855_ Acquired 9 matter. 02858_ Acquired Sub. Monowheel. 02859_ Acquired 2 matter. 02864_ Subatomizers dissect the Sub. Power Source. 02872_ Dropped Sub. Power Source. 02874_ Acquired 13 matter. 02879_ Subatomizers dissect the Sub. Power Source, destroying it. 02907_ 2J-Q81(u) builds Twisted Machinery. 02910_ 1Q-I7S(R): "MADSUB!" 02921_ Mining Laser destroyed. 02921_ 2J-Q81(u) builds Twisted Machinery. 02922_ Destroyed Sub. Monowheel. 02922_ 2J-Q81(u) cries out in pain. 02922_ 2J-Q81(u) destroyed. 02925_ Subatomizers dissect the Sub. Power Source. Map ----- +----------------------------------------------------+ | ????????????????????????????????????????????????? | | ????????????????????????????????????????????????? | | ????????????????????????????????????????????????? | | ????????????????????????????????????????????????? | | ????????????????????????????????????????????????? | | ????????????????????????????????????????????????? | | ????????????????????????????????????????????????? | | ????????????????????????????????????????????????? | | ????????????????????????????????????????????????? | | ????????????????????????????????????????????????? | | ??????????????????? ??? ????????????????????????? | | ????????????????? ? #??? ???????????????????? | | ???????????????? ## #??????????????????? | | ???????????????? #??????????????????? | | ?????????????# ???????????????????? | | ????????????? ????????????????????? | | ?????????????? ?????????????????????? | | ???????????????; ?????????????????????? | | ????????????????# % ?????????????????????? | | ????????????????# ==* ?????????????????????? | | ?????????????#"## R ##????????????????????? | | ?????????????#""% #????????????????????? | | ?????????????# ##???????????????????? | | ?????????????# " ;#???????????????????? | | ?????????????# """""## #####???????????????? | | ????????????# """#?####@ ; < #???????????????? | | ????????????% """????# < ##??????????????? | | ????????????##? """????#; #??????????????? | | ????????????????"??????## & < ##??????????????? | | ???????????????????????# & ####????????????? | | ???????????????????????## * ###??????????? | | ????????????????????????## & #??????????? | | ????????????????????????# # ##??????????? | | ????????????????????????# #??????????? | | ????????????????????????## #??????????? | | ?????????????????????????# & #??????????? | | ????????????????????????# #??????????? | | ????????????????????????# #??????????? | | ?????????????????????#### #??????????? | | ?????????????????????# #" " #??????????? | | ?????????????????????## """" ######??????????? | | ??????????????????????# ### "#???????????????? | | ?????????????????????## #???????????????? | | ?????????????????????# ##??????????????? | | ?????????????????????# ##?????????????? | | ????????????????????## #?????????????? | | ???????????????###### ## #?????????????? | | ??????????????## ### ##?????????????? | | ??????????????# ## #??##??????????????? | | ??????????????## #### ##?????????????????? | +----------------------------------------------------+ Best States ------------- Heat Dissipation 35 Energy Generation 15 Energy Capacity 250 Matter Stores 300 Matter Capacity 300 Sight Range 16 Robot Scan Range 14 Terrain Scan Range 16 Terrain Scan Density 10 Armor Coverage 150 Evasion (%) 50 Recoil Reduction 2 Offensive Hacking 10 Item Schematics ----------------- None Robot Schematics ------------------ None Fabricated ------------ Nothing Repaired ---------- Nothing Studied --------- None Alien Tech Used ----------------- None Achievements -------------- None Challenges ------------ None Game ------ Seed ThermalFactoryShielding Manual? 0 Play Time 00:35:14 Cumulative 63.3 hours Start 2025.11.08 @ 20:39:10 End 2025.11.09 @ 16:09:58 Sessions 4 Manual Loads 0 Difficulty Rogue Special Mode None Game No. 26 Rogue 25 Adventurer 1 Explorer 0 Win Type - Total 2 Types 1/0/1/0/0/0/0/0/0/0 Lore% 28 Gallery% 35 Achievement% 30 Wizard Run 0 Options --------- Layout 2 ASCII 0 Keyboard 1 Movement Vi Keybinds 1 Fullscreen 2 Font 32/Terminus Map View 50x44 Zoom Use 0% Tactical HUD 1 Map Filters NONE Filters NONE Steam 1 RUN: 70a5105f-a244-4d71-b861-5dfb2fdf94e1